fUSD/lending_fUSD_20240117
["ID","MTS","AMOUNT","RATE_DAILY","PERIOD"]
[311896687,1705489940962,-500.0,0.00025205,2]
[311896688,1705489940976,-1683.87,0.00025205,2]
[311896689,1705489940985,-1912.07,0.00025205,2]
[311896690,1705489940995,-602.95,0.00025205,2]
[311896691,1705489941005,-2975.27,0.00025205,2]
[311896692,1705489941015,-1794.36,0.00025205,2]
[311896693,1705489941027,-3013.34,0.00025205,2]
[311896694,1705489941037,-1938.89,0.00025205,2]
[311896695,1705489941047,-649.62,0.00025205,2]
[311896696,1705489941057,-8143.8,0.00025205,2]
[311896697,1705489941068,-509.62,0.00025205,2]
[311896698,1705489941078,-1207.37,0.00025205,2]
[311896699,1705489941089,-1304.2,0.00025205,2]
[311896700,1705489941099,-1538.7,0.00025205,2]
[311896701,1705489941109,-924.58,0.00025205,2]
[311896702,1705489941119,-2403.64,0.00025205,2]
[311896703,1705489941129,-500.0,0.00025205,2]
[311896704,1705489941139,-1179.93,0.00025205,2]
[311896705,1705489941149,-852.81,0.00025205,2]
[311896706,1705489941159,-1937.17,0.00025205,2]
[311896707,1705489941169,-1023.73,0.00025205,2]
[311896708,1705489941179,-500.0,0.00025205,2]
[311896709,1705489941190,-2592.46,0.00025205,2]
[311896710,1705489941201,-968.29,0.00025205,2]
[311896711,1705489941212,-189.55449357,0.00025205,2]
[311896712,1705489941222,-3413.16,0.00025205,2]
[311896713,1705489941234,-500.0,0.00025205,2]
[311896714,1705489941244,-500.0,0.00025205,2]
[311896715,1705489941254,-1297.47,0.00025205,2]
[311896716,1705489941264,-745.84,0.00025205,2]
[311896717,1705489941274,-2908.69,0.00025205,2]
[311896718,1705489941284,-1190.11,0.00025205,2]
[311896719,1705489941294,-815.9,0.00025205,2]
[311896720,1705489941304,-500.0,0.00025205,2]
[311896721,1705489941314,-8716.14,0.00025205,2]
[311896722,1705489941324,-601.43,0.00025205,2]
[311896723,1705489941334,-2488.53,0.00025205,2]
[311896724,1705489941345,-3604.29,0.00025205,5]
[311896725,1705489941355,-681.48,0.00025205,2]
[311896726,1705489941368,-1866.72,0.00025205,2]
[311896727,1705489941378,-150.0,0.00025257,2]
[311896728,1705489941388,-150.0,0.00025289,2]
[311896729,1705489941398,-150.0,0.00025314,2]
[311896730,1705489941409,-347.19,0.00025356,2]
[311896731,1705489941420,-500.0,0.00025454,2]
[311896732,1705489941430,-3787.8077043,0.00025476,2]
[311896733,1705489941441,-1504.83,0.00025479,2]
[311896734,1705489941452,-752.6,0.00025479,2]
[311896735,1705489941463,-500.0,0.00025479,2]
[311896736,1705489941473,-1005.29,0.00025479,2]
[311896737,1705489941483,-581.65,0.00025479,2]
[311896738,1705489941493,-724.82,0.00025479,2]
[311896739,1705489941503,-500.0,0.00025479,2]
[311896740,1705489941513,-600.28,0.00025479,2]
[311896741,1705489941523,-500.0,0.00025479,2]
[311896742,1705489941533,-568.6,0.00025479,2]
[311896743,1705489941543,-500.0,0.00025479,2]
[311896744,1705489941553,-514.64,0.00025479,2]
[311896745,1705489941564,-522.85,0.00025479,2]
[311896746,1705489941574,-500.0,0.00025479,2]
[311896747,1705489941584,-561.37,0.00025479,2]
[311896748,1705489941593,-500.0,0.00025479,2]
[311896749,1705489941603,-569.46,0.00025479,2]
[311896750,1705489941613,-564.18,0.00025479,2]
[311896751,1705489941622,-1178.46,0.00025479,2]
[311896752,1705489941633,-573.27,0.00025479,2]
[311896753,1705489941642,-540.7,0.00025479,2]
[311896754,1705489941666,-500.0,0.00025479,2]
[311896755,1705489941685,-507.73,0.00025479,2]
[311896756,1705489941695,-313.52,0.00025479,2]
[311896757,1705489941705,-500.0,0.00025479,2]
[311896758,1705489941715,-554.53,0.00025479,2]
[311896759,1705489941724,-676.5,0.00025479,2]
[311896760,1705489941734,-569.53,0.00025479,2]
[311896761,1705489941743,-500.0,0.00025479,2]
[311896762,1705489941753,-773.49,0.00025479,2]
[311896763,1705489941763,-500.0,0.00025479,2]
[311896764,1705489941773,-500.0,0.00025479,2]
[311896765,1705489941782,-713.2,0.00025479,2]
[311896766,1705489941792,-924.46,0.00025479,2]
[311896767,1705489941802,-1087.8,0.00025479,2]
[311896768,1705489941811,-748.0,0.00025479,2]
[311896769,1705489941821,-590.98,0.00025479,2]
[311896770,1705489941831,-1140.29,0.00025479,2]
[311896771,1705489941841,-771.56,0.00025479,2]
[311896772,1705489941852,-500.0,0.00025479,2]
[311896773,1705489941862,-500.0,0.00025479,2]
[311896774,1705489941871,-841.84,0.00025479,2]
[311896775,1705489941880,-1103.54,0.00025479,2]
[311896776,1705489941890,-771.02,0.00025479,2]
[311896777,1705489941899,-674.53,0.00025479,2]
[311896778,1705489941909,-500.0,0.00025479,2]
[311896779,1705489941919,-500.0,0.00025479,2]
[311896780,1705489941929,-1012.5,0.00025479,2]
[311896781,1705489941938,-708.29,0.00025479,2]
[311896782,1705489941949,-902.18,0.00025479,2]
[311896783,1705489941958,-642.34,0.00025479,2]
[311896784,1705489941968,-1577.38,0.00025479,2]
[311896785,1705489941978,-642.91,0.00025479,2]
[311896786,1705489941988,-671.72,0.00025479,2]
[311896787,1705489941997,-559.49,0.00025479,2]
[311896788,1705489942007,-500.0,0.00025479,2]
[311896789,1705489942021,-513.19,0.00025479,2]
[311896790,1705489942031,-1101.33,0.00025479,2]
[311896791,1705489942041,-560.17,0.00025479,2]
[311896792,1705489942051,-646.26,0.00025479,2]
[311896793,1705489942062,-500.0,0.00025479,2]
[311896794,1705489942072,-540.47,0.00025479,2]
[311896795,1705489942082,-1309.23,0.00025479,2]
[311896796,1705489942092,-862.21,0.00025479,2]
[311896797,1705489942102,-500.0,0.00025479,2]
[311896798,1705489942113,-500.0,0.00025479,2]
[311896799,1705489942122,-592.26,0.00025479,2]
[311896800,1705489942133,-500.0,0.00025479,2]
[311896801,1705489942143,-548.37,0.00025479,2]
[311896802,1705489942152,-852.28,0.00025479,2]
[311896803,1705489942162,-751.97,0.00025479,2]
[311896804,1705489942172,-629.68,0.00025479,2]
[311896805,1705489942181,-615.19292499,0.00025479,2]
[311896806,1705489942191,-1038.17,0.00025479,2]
[311896807,1705489942201,-865.86,0.00025479,2]
[311896808,1705489942210,-500.0,0.00025479,2]
[311896809,1705489942220,-809.41,0.00025479,2]
[311896810,1705489942230,-500.0,0.00025479,2]
[311896811,1705489942240,-824.35,0.00025479,2]
[311896812,1705489942249,-500.0,0.00025479,2]
[311896813,1705489942259,-858.82,0.00025479,2]
[311896814,1705489942269,-583.98,0.00025479,2]
[311896815,1705489942279,-500.0,0.00025479,2]
[311896816,1705489942289,-678.81,0.00025479,2]
[311896817,1705489942299,-924.3,0.00025479,2]
[311896818,1705489942309,-683.06,0.00025479,2]
[311896819,1705489942319,-500.0,0.00025479,2]
[311896820,1705489942328,-762.3,0.00025479,2]
[311896821,1705489942339,-500.0,0.00025479,2]
[311896822,1705489942348,-869.48,0.00025479,2]
[311896823,1705489942359,-726.09,0.00025479,2]
[311896824,1705489942371,-500.0,0.00025479,2]
[311896825,1705489942380,-500.0,0.00025479,2]
[311896826,1705489942390,-636.58,0.00025479,2]
[311896827,1705489942400,-888.84,0.00025479,2]
[311896828,1705489942410,-681.16,0.00025479,2]
[311896829,1705489942420,-1114.57,0.00025479,2]
[311896830,1705489942430,-986.98,0.00025479,2]
[311896831,1705489942440,-500.0,0.00025479,2]
[311896832,1705489942449,-560.75,0.00025479,2]
[311896833,1705489942459,-818.15,0.00025479,2]
[311896834,1705489942469,-1015.76,0.00025479,2]
[311896835,1705489942478,-924.47,0.00025479,2]
[311896836,1705489942488,-565.32,0.00025479,2]
[311896837,1705489942497,-778.03,0.00025479,2]
[311896838,1705489942507,-938.79,0.00025479,2]
[311896839,1705489942516,-685.24,0.00025479,2]
[311896840,1705489942525,-1126.57,0.00025479,2]
[311896841,1705489942535,-1529.03,0.00025479,2]
[311896842,1705489942545,-842.83,0.00025479,2]
[311896843,1705489942554,-677.6,0.00025479,2]
[311896844,1705489942564,-824.64,0.00025479,2]
[311896845,1705489942574,-500.0,0.00025479,2]
[311896846,1705489942583,-1113.11,0.00025479,2]
[311896847,1705489942593,-1539.23,0.00025479,2]
[311896848,1705489942804,-802.8,0.00025479,2]
[311896849,1705489942824,-509.96,0.00025479,2]
[311896850,1705489942833,-620.77,0.00025479,2]
[311896851,1705489942843,-500.0,0.00025479,2]
[311896852,1705489942852,-1060.88,0.00025479,2]
[311896853,1705489942861,-1111.84,0.00025479,2]
[311896854,1705489942870,-500.0,0.00025479,2]
[311896855,1705489942879,-797.2,0.00025479,2]
[311896856,1705489942888,-554.16,0.00025479,2]
[311896857,1705489942897,-814.02,0.00025479,2]
[311896858,1705489942907,-653.02,0.00025479,2]
[311896859,1705489942916,-728.98,0.00025479,2]
[311896860,1705489942924,-608.56,0.00025479,2]
[311896861,1705489942933,-500.0,0.00025479,2]
[311896862,1705489942943,-500.0,0.00025479,2]
[311896863,1705489942952,-500.0,0.00025479,2]
[311896864,1705489942961,-1117.37,0.00025479,2]
[311896865,1705489942971,-786.84,0.00025479,2]
[311896866,1705489942980,-865.83,0.00025479,2]
[311896867,1705489942989,-644.84,0.00025479,2]
[311896868,1705489942998,-500.0,0.00025479,2]
[311896869,1705489943007,-985.83,0.00025479,2]
[311896870,1705489943016,-645.46,0.00025479,2]
[311896871,1705489943026,-500.0,0.00025479,2]
[311896872,1705489943035,-594.37275081,0.00025479,2]
[311896873,1705489943045,-654.2,0.00025479,2]
[311896874,1705489943056,-671.37,0.00025479,2]
[311896875,1705489943065,-500.0,0.00025479,2]
[311896876,1705489943074,-500.0,0.00025479,2]
[311896877,1705489943084,-677.29,0.00025479,2]
[311896878,1705489943094,-859.76,0.00025479,2]
[311896879,1705489943103,-679.83,0.00025479,2]
[311896880,1705489943113,-812.38,0.00025479,2]
[311896881,1705489943122,-529.77,0.00025479,2]
[311896882,1705489943131,-500.0,0.00025479,2]
[311896883,1705489943142,-500.0,0.00025479,2]
[311896884,1705489943151,-905.75,0.00025479,2]
[311896885,1705489943160,-500.0,0.00025479,2]
[311896886,1705489943170,-597.1,0.00025479,2]
[311896887,1705489943179,-381.03250957,0.00025479,2]
[311896888,1705489943189,-500.0,0.00025479,2]
[311896889,1705489943199,-976.89,0.00025479,2]
[311896890,1705489943208,-921.81,0.00025479,2]
[311896891,1705489943218,-801.58,0.00025479,2]
[311896892,1705489943227,-1318.24,0.00025479,2]
[311896893,1705489943237,-565.85,0.00025479,2]
[311896894,1705489943246,-500.0,0.00025479,2]
[311896895,1705489943256,-761.53,0.00025479,2]
[311896896,1705489943266,-903.46,0.00025479,2]
[311896897,1705489943275,-638.67,0.00025479,2]
[311896898,1705489943285,-500.0,0.00025479,2]
[311896899,1705489943295,-689.33,0.00025479,2]
[311896900,1705489943304,-500.0,0.00025479,2]
[311896901,1705489943313,-642.35,0.00025479,2]
[311896902,1705489943323,-500.0,0.00025479,2]
[311896903,1705489943332,-1001.32,0.00025479,2]
[311896904,1705489943342,-623.34,0.00025479,2]
[311896905,1705489943351,-1127.94,0.00025479,2]
[311896906,1705489943365,-500.0,0.00025479,2]
[311896907,1705489943374,-893.53,0.00025479,2]
[311896908,1705489943383,-970.35,0.00025479,2]
[311896909,1705489943392,-703.72,0.00025479,2]
[311896910,1705489943403,-500.0,0.00025479,2]
[311896911,1705489943412,-877.36,0.00025479,2]
[311896912,1705489943422,-500.0,0.00025479,2]
[311896913,1705489943431,-1113.03,0.00025479,2]
[311896914,1705489943441,-1009.59,0.00025479,2]
[311896915,1705489943451,-671.58,0.00025479,2]
[311896916,1705489943461,-645.55,0.00025479,2]
[311896917,1705489943470,-519.72,0.00025479,2]
[311896918,1705489943479,-832.3,0.00025479,2]
[311896919,1705489943488,-509.1,0.00025479,2]
[311896920,1705489943497,-500.0,0.00025479,2]
[311896921,1705489943506,-556.75,0.00025479,2]
[311896922,1705489943516,-500.0,0.00025479,2]
[311896923,1705489943525,-919.94,0.00025479,2]
[311896924,1705489943534,-574.45,0.00025479,2]
[311896925,1705489943543,-730.7,0.00025479,2]
[311896926,1705489943553,-1564.11,0.00025479,2]
[311896927,1705489943562,-753.37,0.00025479,2]
[311896928,1705489943575,-1972.35,0.00025479,2]
[311896929,1705489943585,-819.9,0.00025479,2]
[311896930,1705489943594,-665.72,0.00025479,2]
[311896931,1705489943604,-1330.15,0.00025479,2]
[311896932,1705489943614,-500.0,0.00025479,2]
[311896933,1705489943623,-1961.2,0.00025479,2]
[311896934,1705489943632,-924.92,0.00025479,2]
[311896935,1705489943641,-1342.87,0.00025479,2]
[311896936,1705489943650,-500.0,0.00025479,2]
[311896937,1705489943659,-516.6,0.00025479,2]
[311896938,1705489943669,-966.0,0.00025479,2]
[311896939,1705489943678,-872.31,0.00025479,2]
[311896940,1705489943687,-1214.22,0.00025479,2]
[311896941,1705489943695,-500.0,0.00025479,2]
[311896942,1705489943705,-748.35,0.00025479,2]
[311896943,1705489943714,-481.74525293,0.00025479,2]
[311896944,1705489943723,-500.0,0.00025479,2]
[311896945,1705489943733,-937.16,0.00025479,2]
[311896946,1705489943742,-799.25,0.00025479,2]
[311896947,1705489943752,-628.65,0.00025479,2]
[311896948,1705489943761,-500.0,0.00025479,2]
[311896949,1705489943770,-616.54,0.00025479,2]
[311896950,1705489943780,-500.0,0.00025479,2]
[311896951,1705489943790,-717.16,0.00025479,2]
[311896952,1705489943799,-500.0,0.00025479,2]
[311896953,1705489943809,-707.9,0.00025479,2]
[311896954,1705489943818,-2202.67,0.00025479,2]
[311896955,1705489943828,-994.43,0.00025479,2]
[311896956,1705489943837,-500.0,0.00025479,2]
[311896957,1705489943846,-1314.57,0.00025479,2]
[311896958,1705489943855,-700.88,0.00025479,2]
[311896959,1705489943864,-747.11,0.00025479,2]
[311896960,1705489943873,-1247.23,0.00025479,2]
[311896961,1705489943882,-500.0,0.00025479,2]
[311896962,1705489943891,-500.0,0.00025479,2]
[311896963,1705489943901,-1107.65,0.00025479,2]
[311896964,1705489943910,-1113.86,0.00025479,2]
[311896965,1705489943919,-940.75,0.00025479,2]
[311896966,1705489943928,-1068.04,0.00025479,2]
[311896967,1705489943937,-591.69,0.00025479,2]
[311896968,1705489943947,-500.0,0.00025479,2]
[311896969,1705489943956,-514.52,0.00025479,2]
[311896970,1705489943965,-1801.96,0.00025479,2]
[311896971,1705489943975,-1119.07,0.00025479,2]
[311896972,1705489943984,-2470.72,0.00025479,2]
[311896973,1705489943993,-500.0,0.00025479,2]
[311896974,1705489944002,-500.0,0.00025479,2]
[311896975,1705489944011,-500.0,0.00025479,2]
[311896976,1705489944020,-524.15,0.00025479,2]
[311896977,1705489944030,-904.79,0.00025479,2]
[311896978,1705489944039,-510.6,0.00025479,2]
[311896979,1705489944048,-576.31,0.00025479,2]
[311896980,1705489944058,-1190.34,0.00025479,2]
[311896981,1705489944067,-764.68,0.00025479,2]
[311896982,1705489944077,-1052.25,0.00025479,2]
[311896983,1705489944086,-636.43,0.00025479,2]
[311896984,1705489944095,-670.55,0.00025479,2]
[311896985,1705489944104,-1264.48,0.00025479,2]
[311896986,1705489944113,-814.85,0.00025479,2]
[311896987,1705489944123,-544.71,0.00025479,2]
[311896988,1705489944133,-500.0,0.00025479,2]
[311896989,1705489944142,-1206.43,0.00025479,2]
[311896990,1705489944151,-1198.01,0.00025479,2]
[311896991,1705489944161,-500.0,0.00025479,2]
[311896992,1705489944170,-1043.84,0.00025479,2]
[311896993,1705489944179,-1304.35,0.00025479,2]
[311896994,1705489944189,-1069.27,0.00025479,2]
[311896995,1705489944198,-1087.69,0.00025479,2]
[311896996,1705489944207,-962.26,0.00025479,2]
[311896997,1705489944216,-500.0,0.00025479,2]
[311896998,1705489944226,-516.2,0.00025479,2]
[311896999,1705489944235,-1632.67,0.00025479,2]
[311897000,1705489944244,-939.16,0.00025479,2]
[311897001,1705489944253,-500.0,0.00025479,2]
[311897002,1705489944263,-500.0,0.00025479,2]
[311897003,1705489944272,-918.4,0.00025479,2]
[311897004,1705489944291,-995.2,0.00025479,2]
[311897005,1705489944308,-500.0,0.00025479,2]
[311897006,1705489944324,-1008.57,0.00025479,2]
[311897007,1705489944344,-500.0,0.00025479,2]
[311897008,1705489944362,-500.0,0.00025479,2]
[311897009,1705489944378,-1060.73,0.00025479,2]
[311897010,1705489944394,-500.0,0.00025479,2]
[311897011,1705489944411,-1029.51,0.00025479,2]
[311897012,1705489944429,-636.13,0.00025479,2]
[311897013,1705489944448,-500.0,0.00025479,2]
[311897014,1705489944465,-702.02,0.00025479,2]
[311897015,1705489944484,-701.5,0.00025479,2]
[311897016,1705489944500,-594.97,0.00025479,2]
[311897017,1705489944512,-1038.32,0.00025479,2]
[311897018,1705489944529,-572.4,0.00025479,2]
[311897019,1705489944544,-3550.63,0.00025479,2]
[311897020,1705489944562,-982.96,0.00025479,2]
[311897021,1705489944577,-229.65218988,0.00025479,2]
[311897022,1705489944592,-579.93,0.00025479,2]
[311897023,1705489944608,-924.4,0.00025479,2]
[311897024,1705489944623,-500.0,0.00025479,2]
[311897025,1705489944637,-2301.87,0.00025479,2]
[311897026,1705489944653,-578.12,0.00025479,2]
[311897027,1705489944668,-885.89,0.00025479,2]
[311897028,1705489944683,-500.0,0.00025479,2]
[311897029,1705489944698,-694.35,0.00025479,2]
[311897030,1705489944712,-711.56,0.00025479,2]
[311897031,1705489944727,-1404.62,0.00025479,2]
[311897032,1705489944742,-500.0,0.00025479,2]
[311897033,1705489944756,-635.43,0.00025479,2]
[311897034,1705489944771,-1174.22,0.00025479,2]
[311897035,1705489944785,-1235.63,0.00025479,2]
[311897036,1705489944800,-701.7,0.00025479,2]
[311897037,1705489944814,-915.13,0.00025479,2]
[311897038,1705489944828,-500.0,0.00025479,2]
[311897039,1705489944843,-544.59,0.00025479,2]
[311897040,1705489944858,-2849.83,0.00025479,2]
[311897041,1705489944873,-1964.36,0.00025479,2]
[311897042,1705489944888,-500.0,0.00025479,2]
[311897043,1705489944902,-2896.5,0.00025479,2]
[311897044,1705489944916,-500.0,0.00025479,2]
[311897045,1705489944930,-683.02,0.00025479,2]
[311897046,1705489944945,-1968.52,0.00025479,2]
[311897047,1705489944960,-1342.01,0.00025479,2]
[311897048,1705489944974,-675.72,0.00025479,2]
[311897049,1705489944988,-1029.41,0.00025479,2]
[311897050,1705489945002,-1548.58,0.00025479,2]
[311897051,1705489945016,-500.0,0.00025479,2]
[311897052,1705489945030,-655.65,0.00025479,2]
[311897053,1705489945044,-3528.9,0.00025479,2]
[311897054,1705489945060,-550.17,0.00025479,2]
[311897055,1705489945075,-530.48,0.00025479,2]
[311897056,1705489945090,-1274.2,0.00025479,2]
[311897057,1705489945104,-500.0,0.00025479,2]
[311897058,1705489945118,-1478.93,0.00025479,2]
[311897059,1705489945132,-710.03,0.00025479,2]
[311897060,1705489945147,-8305.92,0.00025479,2]
[311897061,1705489945162,-826.31,0.00025479,2]
[311897062,1705489945176,-500.0,0.00025479,2]
[311897063,1705489945191,-3468.63,0.00025479,2]
[311897064,1705489945206,-688.83,0.00025479,2]
[311897065,1705489945220,-598.69,0.00025479,2]
[311897066,1705489945236,-566.04,0.00025479,2]
[311897067,1705489945251,-13840.01,0.00025479,2]
[311897068,1705489945266,-330.45,0.00025479,2]
[311897069,1705489945280,-611.72,0.00025479,2]
[311897070,1705489945295,-678.15,0.00025479,2]
[311897071,1705489945310,-6007.21,0.00025479,2]
[311897072,1705489945325,-11260.59,0.00025479,2]
[311897073,1705489945340,-576.52,0.00025479,2]
[311897074,1705489945355,-537.26,0.00025479,2]
[311897075,1705489945370,-9043.74,0.00025479,2]
[311897076,1705489945386,-839.94,0.00025479,2]
[311897077,1705489945401,-785.85,0.00025479,2]
[311897078,1705489945416,-2426.8,0.00025479,2]
[311897079,1705489945431,-2267.53,0.00025479,2]
[311897080,1705489945446,-500.0,0.00025479,2]
[311897081,1705489945460,-1153.46,0.00025479,2]
[311897082,1705489945474,-5019.46,0.00025479,2]
[311897083,1705489945489,-14230.88,0.00025479,2]
[311897084,1705489945504,-585.41,0.00025479,2]
[311897085,1705489945519,-1948.18,0.00025479,2]
[311897086,1705489945534,-807.32,0.00025479,2]
[311897087,1705489945549,-500.0,0.00025479,2]
[311897088,1705489945564,-500.0,0.00025479,2]
[311897089,1705489945578,-541.68,0.00025479,2]
[311897090,1705489945593,-1841.76,0.00025479,2]
[311897091,1705489945608,-648.92,0.00025479,2]
[311897092,1705489945623,-1313.51,0.00025479,2]
[311897093,1705489945637,-7863.6,0.00025479,2]
[311897094,1705489945651,-669.79,0.00025479,2]
[311897095,1705489945666,-1235.43,0.00025479,2]
[311897096,1705489945679,-1875.02,0.00025479,2]
[311897097,1705489945693,-886.27,0.00025479,2]
[311897098,1705489945707,-861.27,0.00025479,2]
[311897099,1705489945721,-863.63,0.00025479,2]
[311897100,1705489945736,-2235.54,0.00025479,2]
[311897101,1705489945749,-6074.67,0.00025479,2]
[311897102,1705489945764,-697.24,0.00025479,2]
[311897103,1705489945779,-524.02,0.00025479,2]
[311897104,1705489945793,-4516.86,0.00025479,2]
[311897105,1705489945808,-500.0,0.00025479,2]
[311897106,1705489945824,-3841.76,0.00025479,2]
[311897107,1705489945838,-500.0,0.00025479,2]
[311897108,1705489945852,-974.16,0.00025479,2]
[311897109,1705489945866,-4448.34,0.00025479,2]
[311897110,1705489945881,-4150.83,0.00025479,2]
[311897111,1705489945896,-500.0,0.00025479,2]
[311897112,1705489945910,-500.0,0.00025479,2]
[311897113,1705489945924,-533.91,0.00025479,2]
[311897114,1705489945938,-500.0,0.00025479,2]
[311897115,1705489945952,-566.02,0.00025479,2]
[311897116,1705489945966,-2935.1,0.00025479,2]
[311897117,1705489945980,-1309.04,0.00025479,2]
[311897118,1705489945994,-1965.44,0.00025479,2]
[311897119,1705489946008,-992.22,0.00025479,2]
[311897120,1705489946022,-984.15,0.00025479,2]
[311897121,1705489946036,-500.0,0.00025479,2]
[311897122,1705489946051,-32469.27,0.00025479,2]
[311897123,1705489946065,-573.08,0.00025479,2]
[311897124,1705489946079,-661.33,0.00025479,2]
[311897125,1705489946093,-1696.71,0.00025479,2]
[311897126,1705489946107,-615.65,0.00025479,2]
[311897127,1705489946120,-649.27,0.00025479,2]
[311897128,1705489946134,-2575.9,0.00025479,2]
[311897129,1705489946149,-1939.24,0.00025479,2]
[311897130,1705489946164,-3511.42,0.00025479,2]
[311897131,1705489946178,-500.0,0.00025479,2]
[311897132,1705489946193,-500.0,0.00025479,2]
[311897133,1705489946207,-1929.09,0.00025479,2]
[311897134,1705489946222,-500.0,0.00025479,2]
[311897135,1705489946235,-500.0,0.00025479,2]
[311897136,1705489946257,-500.0,0.00025479,2]
[311897137,1705489946271,-1412.27,0.00025479,2]
[311897138,1705489946285,-540.57849224,0.00025479,2]
[311897139,1705489946300,-2389.77,0.00025479,2]
[311897140,1705489946314,-2475.33,0.00025479,2]
[311897141,1705489946329,-1653.65,0.00025479,2]
[311897142,1705489946344,-4575.47,0.00025479,2]
[311897143,1705489946360,-14816.63,0.00025479,2]
[311897144,1705489946379,-661.55,0.00025479,2]
[311897145,1705489946393,-500.0,0.00025479,2]
[311897146,1705489946408,-834.9,0.00025479,2]
[311897147,1705489946422,-8016.45,0.00025479,2]
[311897148,1705489946436,-1732.77,0.00025479,2]
[311897149,1705489946452,-1784.49,0.00025479,2]
[311897150,1705489946467,-558.85,0.00025479,2]
[311897151,1705489946481,-1352.99,0.00025479,2]
[311897152,1705489946495,-505.84985628,0.00025479,2]
[311897153,1705489946509,-678.67,0.00025479,2]
[311897154,1705489946524,-1038.1,0.00025479,2]
[311897155,1705489946538,-9036.89,0.00025479,2]
[311897156,1705489946552,-815.12,0.00025479,2]
[311897157,1705489946567,-1774.09,0.00025479,2]
[311897158,1705489946582,-502.32,0.00025479,2]
[311897159,1705489946599,-2414.66,0.00025479,2]
[311897160,1705489946613,-5111.21,0.00025479,2]
[311897161,1705489946627,-500.0,0.00025479,2]
[311897162,1705489946936,-1734.88,0.00025479,2]
[311897163,1705489946946,-855.29,0.00025479,2]
[311897164,1705489946955,-500.0,0.00025479,2]
[311897165,1705489946964,-2245.54,0.00025479,2]
[311897166,1705489946974,-1744.59,0.00025479,2]
[311897167,1705489946983,-500.0,0.00025479,2]
[311897168,1705489946993,-1274.36,0.00025479,2]
[311897169,1705489947003,-706.05,0.00025479,2]
[311897170,1705489947012,-1510.08,0.00025479,2]
[311897171,1705489947021,-887.83,0.00025479,2]
[311897172,1705489947031,-485.88160082,0.00025479,2]
[311897173,1705489947040,-1357.1,0.00025479,2]
[311897174,1705489947049,-1827.37,0.00025479,2]
[311897175,1705489947059,-1435.95,0.00025479,2]
[311897176,1705489947069,-584.24,0.00025479,2]
[311897177,1705489947079,-663.37,0.00025479,2]
[311897178,1705489947088,-779.77,0.00025479,2]
[311897179,1705489947097,-597.44,0.00025479,2]
[311897180,1705489947106,-3629.95,0.00025479,2]
[311897181,1705489947115,-1883.37,0.00025479,2]
[311897182,1705489947124,-992.47,0.00025479,2]
[311897183,1705489947133,-916.35,0.00025479,2]
[311897184,1705489947142,-1639.63,0.00025479,2]
[311897185,1705489947155,-1741.77,0.00025479,2]
[311897186,1705489947165,-3959.88,0.00025479,2]